[Event "*** Titled Tuesday Blitz"]
[Site "Chess.com"]
[Date "2020.03.03"]
[Round "8"]
[White "marcodobrikov"]
[Black "RojonR"]
[Result "1-0"]
[WhiteElo "2557"]
[BlackElo "2388"]
[TimeControl "180+1"]
[EndTime "10:29:45 PST"]
[Termination "marcodobrikov won on time"]

1. e4 {[%clk 0:02:34]} 1... e5 {[%clk 0:02:59.5]} 2. Nf3 {[%clk 0:02:31.7]} 2...
Nc6 {[%clk 0:02:59.7]} 3. Bc4 {[%clk 0:02:30]} 3... Nf6 {[%clk 0:02:59]} 4. Ng5
{[%clk 0:02:29.9]} 4... d5 {[%clk 0:02:58.5]} 5. exd5 {[%clk 0:02:30.8]} 5...
Na5 {[%clk 0:02:58.7]} 6. Bb5+ {[%clk 0:02:31]} 6... Bd7 {[%clk 0:02:58.6]} 7.
Qe2 {[%clk 0:02:27.6]} 7... Be7 {[%clk 0:02:58.4]} 8. O-O {[%clk 0:02:27.2]}
8... O-O {[%clk 0:02:56.2]} 9. Nc3 {[%clk 0:02:24.8]} 9... Bxb5 {[%clk
0:02:38.9]} 10. Qxb5 {[%clk 0:02:20.8]} 10... c6 {[%clk 0:02:38.8]} 11. dxc6
{[%clk 0:02:19.8]} 11... Nxc6 {[%clk 0:02:39.7]} 12. Qxb7 {[%clk 0:02:12.7]}
12... Nd4 {[%clk 0:02:38.1]} 13. Nge4 {[%clk 0:01:47.8]} 13... Nxc2 {[%clk
0:02:35.4]} 14. Nxf6+ {[%clk 0:01:47.8]} 14... Bxf6 {[%clk 0:02:32.8]} 15. Rb1
{[%clk 0:01:48.7]} 15... Qd3 {[%clk 0:02:04.6]} 16. Ne4 {[%clk 0:01:34.3]} 16...
Nd4 {[%clk 0:01:47.3]} 17. Ra1 {[%clk 0:01:25.9]} 17... Ne2+ {[%clk 0:01:44.7]}
18. Kh1 {[%clk 0:01:26.1]} 18... Rab8 {[%clk 0:01:35.7]} 19. Qc6 {[%clk
0:01:20.3]} 19... Rb6 {[%clk 0:01:25.9]} 20. Nxf6+ {[%clk 0:01:14.3]} 20... gxf6
{[%clk 0:01:26.8]} 21. Qf3 {[%clk 0:01:14.8]} 21... Rd8 {[%clk 0:01:12.9]} 22.
Qxd3 {[%clk 0:01:08.1]} 22... Rxd3 {[%clk 0:01:12.2]} 23. b3 {[%clk 0:01:06.3]}
23... Nxc1 {[%clk 0:01:07.6]} 24. Raxc1 {[%clk 0:01:06]} 24... Rxd2 {[%clk
0:01:07.7]} 25. Ra1 {[%clk 0:00:51.5]} 25... Rc6 {[%clk 0:01:00.2]} 26. Kg1
{[%clk 0:00:51.7]} 26... Rcc2 {[%clk 0:00:56.9]} 27. a4 {[%clk 0:00:52]} 27...
Rb2 {[%clk 0:00:52.3]} 28. Rab1 {[%clk 0:00:52.1]} 28... Rxf2 {[%clk 0:00:48.1]}
29. Rxb2 {[%clk 0:00:52.3]} 29... Rxb2 {[%clk 0:00:46.8]} 30. Rxf6 {[%clk
0:00:50.2]} 30... Rxb3 {[%clk 0:00:46]} 31. Ra6 {[%clk 0:00:50.3]} 31... Rb7
{[%clk 0:00:44.9]} 32. Kf2 {[%clk 0:00:50.2]} 32... Kg7 {[%clk 0:00:43.2]} 33.
Kf3 {[%clk 0:00:49.5]} 33... f6 {[%clk 0:00:36.7]} 34. g4 {[%clk 0:00:45.6]}
34... Kg6 {[%clk 0:00:35]} 35. h4 {[%clk 0:00:42.4]} 35... h6 {[%clk 0:00:34.6]}
36. a5 {[%clk 0:00:39.8]} 36... Rd7 {[%clk 0:00:33.5]} 37. Ke3 {[%clk
0:00:36.6]} 37... Rd4 {[%clk 0:00:22.6]} 38. Kf3 {[%clk 0:00:36.7]} 38... Rd7
{[%clk 0:00:18.5]} 39. Rc6 {[%clk 0:00:34.4]} 39... Rb7 {[%clk 0:00:16.9]} 40.
a6 {[%clk 0:00:31.6]} 40... Rb3+ {[%clk 0:00:15.5]} 41. Kf2 {[%clk 0:00:28.8]}
41... Ra3 {[%clk 0:00:13.5]} 42. Ke2 {[%clk 0:00:25.7]} 42... Ra4 {[%clk
0:00:10.9]} 43. Kf3 {[%clk 0:00:25.4]} 43... Ra5 {[%clk 0:00:09.3]} 44. Ke4
{[%clk 0:00:21]} 44... Ra4+ {[%clk 0:00:08.6]} 45. Kf3 {[%clk 0:00:19.9]} 45...
Rf4+ {[%clk 0:00:07]} 46. Kg3 {[%clk 0:00:20]} 46... Ra4 {[%clk 0:00:03.3]} 47.
Rc7 {[%clk 0:00:18.1]} 1-0

[Event "*** Titled Tuesday Blitz"]
[Site "Chess.com"]
[Date "2020.03.03"]
[Round "8"]
[White "annacramling"]
[Black "DonPreuss"]
[Result "1-0"]
[WhiteElo "1935"]
[BlackElo "2165"]
[TimeControl "180+1"]
[EndTime "10:29:47 PST"]
[Termination "annacramling won by checkmate"]

1. d4 {[%clk 0:03:00.9]} 1... Nc6 {[%clk 0:02:55.4]} 2. Nf3 {[%clk 0:02:57.2]}
2... d6 {[%clk 0:02:54.1]} 3. d5 {[%clk 0:02:51]} 3... Ne5 {[%clk 0:02:53.6]} 4.
Nxe5 {[%clk 0:02:51]} 4... dxe5 {[%clk 0:02:53.8]} 5. e4 {[%clk 0:02:51.5]} 5...
g6 {[%clk 0:02:40.1]} 6. c4 {[%clk 0:02:36.4]} 6... e6 {[%clk 0:02:36.5]} 7. Nc3
{[%clk 0:02:33.8]} 7... exd5 {[%clk 0:02:34.4]} 8. cxd5 {[%clk 0:02:20.9]} 8...
Bg7 {[%clk 0:02:20.6]} 9. Be3 {[%clk 0:02:03.6]} 9... Ne7 {[%clk 0:02:19.7]} 10.
Be2 {[%clk 0:01:55.5]} 10... O-O {[%clk 0:02:19.6]} 11. O-O {[%clk 0:01:55.4]}
11... f5 {[%clk 0:02:19.5]} 12. Bg5 {[%clk 0:01:48.4]} 12... h6 {[%clk
0:02:18.1]} 13. Bxe7 {[%clk 0:01:38.4]} 13... Qxe7 {[%clk 0:02:19]} 14. Bc4
{[%clk 0:01:38.2]} 14... Kh8 {[%clk 0:02:14.7]} 15. Rc1 {[%clk 0:01:36.4]} 15...
f4 {[%clk 0:02:12]} 16. Be2 {[%clk 0:01:31.4]} 16... Bd7 {[%clk 0:01:42.5]} 17.
Bg4 {[%clk 0:01:16.4]} 17... Bxg4 {[%clk 0:01:38.2]} 18. Qxg4 {[%clk 0:01:15.6]}
18... f3 {[%clk 0:01:38.6]} 19. Qxg6 {[%clk 0:01:13.3]} 19... Qh4 {[%clk
0:01:16.8]} 20. Qg3 {[%clk 0:01:08.9]} 20... Qh5 {[%clk 0:01:16.4]} 21. Qh3
{[%clk 0:00:51.5]} 21... Qg5 {[%clk 0:00:58.7]} 22. Qg3 {[%clk 0:00:50.5]} 22...
Qe7 {[%clk 0:00:52.8]} 23. gxf3 {[%clk 0:00:43.7]} 23... Rf4 {[%clk 0:00:49.1]}
24. Ne2 {[%clk 0:00:41.6]} 24... Rf6 {[%clk 0:00:48.3]} 25. Kh1 {[%clk
0:00:39.8]} 25... Raf8 {[%clk 0:00:47.2]} 26. Rc3 {[%clk 0:00:37.9]} 26... Qf7
{[%clk 0:00:46.8]} 27. Rg1 {[%clk 0:00:34.7]} 27... Rxf3 {[%clk 0:00:38.2]} 28.
Rxf3 {[%clk 0:00:19.7]} 28... Qxf3+ {[%clk 0:00:38.1]} 29. Qxf3 {[%clk
0:00:18.7]} 29... Rxf3 {[%clk 0:00:39]} 30. Kg2 {[%clk 0:00:19]} 30... Rd3
{[%clk 0:00:35.6]} 31. Rc1 {[%clk 0:00:14.8]} 31... c6 {[%clk 0:00:35.2]} 32.
Ng3 {[%clk 0:00:13.5]} 32... cxd5 {[%clk 0:00:34.2]} 33. exd5 {[%clk 0:00:13.5]}
33... Rxd5 {[%clk 0:00:34.4]} 34. Rc8+ {[%clk 0:00:13]} 34... Kh7 {[%clk
0:00:34]} 35. Rc7 {[%clk 0:00:13.1]} 35... Kg6 {[%clk 0:00:32.3]} 36. Rxb7
{[%clk 0:00:12.9]} 36... a5 {[%clk 0:00:31]} 37. Rb6+ {[%clk 0:00:12.2]} 37...
Kf7 {[%clk 0:00:22.1]} 38. Nf5 {[%clk 0:00:07.4]} 38... Bf6 {[%clk 0:00:20.3]}
39. Nxh6+ {[%clk 0:00:07.2]} 39... Kg6 {[%clk 0:00:20.6]} 40. Ng4 {[%clk
0:00:07]} 40... Kg5 {[%clk 0:00:21.1]} 41. Nxf6 {[%clk 0:00:06.7]} 41... Rd2
{[%clk 0:00:20.5]} 42. Ne4+ {[%clk 0:00:06.8]} 42... Kg4 {[%clk 0:00:19.4]} 43.
Nxd2 {[%clk 0:00:07.7]} 43... a4 {[%clk 0:00:19.5]} 44. Rb4+ {[%clk 0:00:07.8]}
44... e4 {[%clk 0:00:19.9]} 45. Rxa4 {[%clk 0:00:08.7]} 45... Kf5 {[%clk
0:00:20]} 46. Kg3 {[%clk 0:00:08.7]} 46... Ke5 {[%clk 0:00:19.3]} 47. Nf1 {[%clk
0:00:08.1]} 47... Kd5 {[%clk 0:00:18.8]} 48. Ne3+ {[%clk 0:00:08.4]} 48... Ke5
{[%clk 0:00:19.7]} 49. h4 {[%clk 0:00:08.3]} 49... Kf6 {[%clk 0:00:19.3]} 50. h5
{[%clk 0:00:08.8]} 50... Kg5 {[%clk 0:00:19.6]} 51. Ra5+ {[%clk 0:00:09.4]}
51... Kh6 {[%clk 0:00:20.5]} 52. Kg4 {[%clk 0:00:10]} 52... Kg7 {[%clk
0:00:20.4]} 53. Nf5+ {[%clk 0:00:10.6]} 53... Kh7 {[%clk 0:00:21.3]} 54. Kg5
{[%clk 0:00:11.1]} 54... Kg8 {[%clk 0:00:21.4]} 55. Ra7 {[%clk 0:00:10.4]} 55...
e3 {[%clk 0:00:22.3]} 56. fxe3 {[%clk 0:00:10.1]} 56... Kh8 {[%clk 0:00:22.4]}
57. Kg6 {[%clk 0:00:10]} 57... Kg8 {[%clk 0:00:23.3]} 58. Ra8# {[%clk
0:00:10.5]} 1-0

[Event "*** Titled Tuesday Blitz"]
[Site "Chess.com"]
[Date "2020.03.03"]
[Round "8"]
[White "ZWISCHENZUGGED"]
[Black "BeanScreen"]
[Result "1/2-1/2"]
[WhiteElo "2549"]
[BlackElo "2640"]
[TimeControl "180+1"]
[EndTime "10:29:48 PST"]
[Termination "Game drawn by agreement"]

1. d4 {[%clk 0:03:00.9]} 1... d5 {[%clk 0:03:00]} 2. c4 {[%clk 0:03:01.5]} 2...
dxc4 {[%clk 0:03:00.9]} 3. Nf3 {[%clk 0:03:00.8]} 3... a6 {[%clk 0:03:01.1]} 4.
e3 {[%clk 0:03:00.7]} 4... Nf6 {[%clk 0:03:01.6]} 5. Bxc4 {[%clk 0:03:00.3]}
5... e6 {[%clk 0:03:02.5]} 6. O-O {[%clk 0:02:58.9]} 6... c5 {[%clk 0:03:03.3]}
7. Nc3 {[%clk 0:02:58.3]} 7... b5 {[%clk 0:03:02.9]} 8. Be2 {[%clk 0:02:57.7]}
8... Bb7 {[%clk 0:03:02.9]} 9. dxc5 {[%clk 0:02:52.2]} 9... Bxc5 {[%clk
0:03:03.8]} 10. Qxd8+ {[%clk 0:02:51.2]} 10... Kxd8 {[%clk 0:03:04.7]} 11. Nd2
{[%clk 0:02:51.3]} 11... Nbd7 {[%clk 0:03:03.8]} 12. Nb3 {[%clk 0:02:50.2]}
12... Bd6 {[%clk 0:03:03.8]} 13. Na5 {[%clk 0:02:45.3]} 13... Rb8 {[%clk
0:02:37.9]} 14. Nxb7+ {[%clk 0:02:42.9]} 14... Rxb7 {[%clk 0:02:38.8]} 15. Rd1
{[%clk 0:02:32.2]} 15... Ke7 {[%clk 0:02:38.4]} 16. Bd2 {[%clk 0:02:22]} 16...
Rc7 {[%clk 0:02:37.6]} 17. a3 {[%clk 0:01:50.6]} 17... Rhc8 {[%clk 0:02:37]} 18.
Kf1 {[%clk 0:01:41.5]} 18... Nc5 {[%clk 0:02:36.3]} 19. Be1 {[%clk 0:01:35.4]}
19... Nfd7 {[%clk 0:01:51.3]} 20. h4 {[%clk 0:01:14.9]} 20... Nb6 {[%clk
0:01:42]} 21. Rab1 {[%clk 0:00:58.8]} 21... Nba4 {[%clk 0:01:37.2]} 22. Nxa4
{[%clk 0:00:41.7]} 22... Nxa4 {[%clk 0:01:38.1]} 23. Bd3 {[%clk 0:00:40.7]}
23... f5 {[%clk 0:01:28.7]} 24. Ba5 {[%clk 0:00:34.9]} 24... Rc6 {[%clk
0:01:28.1]} 25. Ke2 {[%clk 0:00:20.8]} 25... Nb6 {[%clk 0:01:27.2]} 26. Bxb6
{[%clk 0:00:20]} 26... Rxb6 {[%clk 0:01:27.1]} 27. Rdc1 {[%clk 0:00:20.4]} 27...
Rbc6 {[%clk 0:01:25.9]} 28. Rxc6 {[%clk 0:00:20.2]} 28... Rxc6 {[%clk
0:01:26.8]} 29. Kd2 {[%clk 0:00:20.4]} 29... g6 {[%clk 0:01:26.7]} 30. Rc1
{[%clk 0:00:20.7]} 30... Kd7 {[%clk 0:01:14.8]} 31. Rxc6 {[%clk 0:00:20.5]}
31... Kxc6 {[%clk 0:01:15.7]} 32. a4 {[%clk 0:00:20.8]} 32... e5 {[%clk
0:01:12.1]} 33. axb5+ {[%clk 0:00:20.6]} 33... axb5 {[%clk 0:01:12.2]} 34. b3
{[%clk 0:00:21.1]} 34... e4 {[%clk 0:01:10.5]} 35. Be2 {[%clk 0:00:20.5]} 35...
Bb4+ {[%clk 0:01:10]} 36. Kd1 {[%clk 0:00:20.6]} 36... Be7 {[%clk 0:01:05.3]}
37. g3 {[%clk 0:00:20.7]} 37... h5 {[%clk 0:01:04.1]} 38. Kd2 {[%clk 0:00:18.3]}
38... Bb4+ {[%clk 0:01:04]} 39. Kd1 {[%clk 0:00:18.5]} 39... Bc3 {[%clk
0:01:03.4]} 40. Bf1 {[%clk 0:00:17.7]} 40... Kc5 {[%clk 0:01:03.4]} 41. Be2
{[%clk 0:00:15.9]} 41... b4 {[%clk 0:00:58.8]} 42. Bc4 {[%clk 0:00:15.3]} 42...
Bf6 {[%clk 0:00:49.3]} 43. Bf7 {[%clk 0:00:15.3]} 43... g5 {[%clk 0:00:49.4]}
44. hxg5 {[%clk 0:00:15.1]} 44... Bxg5 {[%clk 0:00:50.3]} 45. Bxh5 {[%clk
0:00:13]} 45... Kd5 {[%clk 0:00:49.7]} 46. Bg6 {[%clk 0:00:11]} 46... Ke5 {[%clk
0:00:49.8]} 47. Ke2 {[%clk 0:00:09.9]} 47... Be7 {[%clk 0:00:49.8]} 48. Bf7
{[%clk 0:00:09.4]} 48... Bc5 {[%clk 0:00:49.7]} 49. Bc4 {[%clk 0:00:09.5]} 49...
Bb6 {[%clk 0:00:49.9]} 50. Kf1 {[%clk 0:00:10]} 50... Kf6 {[%clk 0:00:48.4]} 51.
Kg2 {[%clk 0:00:10.3]} 51... Kg5 {[%clk 0:00:48.8]} 52. Be6 {[%clk 0:00:10]}
52... Bc7 {[%clk 0:00:48.3]} 53. Bc8 {[%clk 0:00:09.9]} 53... Be5 {[%clk
0:00:48.3]} 54. Kf1 {[%clk 0:00:09.4]} 54... Bc3 {[%clk 0:00:48.3]} 55. Ke2
{[%clk 0:00:08.5]} 55... Kf6 {[%clk 0:00:48.7]} 56. Ba6 {[%clk 0:00:08.2]} 56...
Ke5 {[%clk 0:00:48.8]} 57. Bc4 {[%clk 0:00:09.1]} 57... Kf6 {[%clk 0:00:48.9]}
58. f3 {[%clk 0:00:07.8]} 58... exf3+ {[%clk 0:00:41.9]} 59. Kxf3 {[%clk
0:00:08.7]} 59... Ke5 {[%clk 0:00:42.3]} 60. Bd3 {[%clk 0:00:08.7]} 60... Bd2
{[%clk 0:00:42.1]} 61. e4 {[%clk 0:00:06.9]} 61... fxe4+ {[%clk 0:00:41.2]} 62.
Bxe4 {[%clk 0:00:07.8]} 1/2-1/2

[Event "*** Titled Tuesday Blitz"]
[Site "Chess.com"]
[Date "2020.03.03"]
[Round "8"]
[White "kingofthenil"]
[Black "Region_07"]
[Result "1-0"]
[WhiteElo "2565"]
[BlackElo "2397"]
[TimeControl "180+1"]
[EndTime "10:29:51 PST"]
[Termination "kingofthenil won on time"]

1. e4 {[%clk 0:03:00.9]} 1... c6 {[%clk 0:02:59]} 2. c4 {[%clk 0:03:00.7]} 2...
d5 {[%clk 0:02:59.9]} 3. cxd5 {[%clk 0:03:01.6]} 3... cxd5 {[%clk 0:02:59.9]} 4.
exd5 {[%clk 0:03:02.5]} 4... Nf6 {[%clk 0:02:59.7]} 5. Nc3 {[%clk 0:03:03.4]}
5... g6 {[%clk 0:02:58.2]} 6. Nf3 {[%clk 0:03:04.3]} 6... Bg7 {[%clk 0:02:58.4]}
7. Bc4 {[%clk 0:02:39.1]} 7... O-O {[%clk 0:02:56.4]} 8. O-O {[%clk 0:02:37]}
8... Nbd7 {[%clk 0:02:47.7]} 9. d3 {[%clk 0:02:34.9]} 9... Nb6 {[%clk
0:02:46.6]} 10. Qb3 {[%clk 0:02:35.4]} 10... Bf5 {[%clk 0:02:37.7]} 11. Re1
{[%clk 0:02:32.6]} 11... Rc8 {[%clk 0:02:30.9]} 12. Bg5 {[%clk 0:02:27.9]} 12...
h6 {[%clk 0:02:05]} 13. Bh4 {[%clk 0:02:17]} 13... g5 {[%clk 0:02:02.8]} 14. Bg3
{[%clk 0:02:16.8]} 14... Ne8 {[%clk 0:02:02.3]} 15. Ne4 {[%clk 0:01:27.8]} 15...
Nd6 {[%clk 0:01:52.8]} 16. Nxd6 {[%clk 0:01:19.6]} 16... exd6 {[%clk 0:01:53.7]}
17. a4 {[%clk 0:01:18.1]} 17... Qc7 {[%clk 0:01:45.5]} 18. h4 {[%clk 0:01:00.6]}
18... g4 {[%clk 0:01:41.9]} 19. Nd2 {[%clk 0:01:00.5]} 19... Nd7 {[%clk
0:01:39.3]} 20. Ne4 {[%clk 0:00:59.1]} 20... Bxe4 {[%clk 0:01:36.3]} 21. dxe4
{[%clk 0:00:54.2]} 21... Qxc4 {[%clk 0:01:36]} 22. Qxb7 {[%clk 0:00:28.2]} 22...
Rc7 {[%clk 0:01:22.9]} 23. Qb5 {[%clk 0:00:28]} 23... Qxb5 {[%clk 0:01:20.1]}
24. axb5 {[%clk 0:00:28.9]} 24... Ne5 {[%clk 0:01:20.2]} 25. Ra6 {[%clk
0:00:28.5]} 25... Rd8 {[%clk 0:01:15.2]} 26. Rea1 {[%clk 0:00:25.5]} 26... Rdd7
{[%clk 0:01:15]} 27. b6 {[%clk 0:00:24.7]} 27... axb6 {[%clk 0:01:14.5]} 28.
Rxb6 {[%clk 0:00:25.6]} 28... Rc2 {[%clk 0:00:51.6]} 29. Raa6 {[%clk 0:00:21.8]}
29... Nc4 {[%clk 0:00:35.3]} 30. Rc6 {[%clk 0:00:20.4]} 30... Rc1+ {[%clk
0:00:31.1]} 31. Kh2 {[%clk 0:00:19.7]} 31... Re7 {[%clk 0:00:14.7]} 32. b3
{[%clk 0:00:17.8]} 32... Rxe4 {[%clk 0:00:12.7]} 33. Rxc4 {[%clk 0:00:17.5]}
33... Rexc4 {[%clk 0:00:10.5]} 34. bxc4 {[%clk 0:00:18.4]} 34... Rxc4 {[%clk
0:00:10.7]} 35. Rxd6 {[%clk 0:00:18]} 35... Rc1 {[%clk 0:00:06.4]} 36. h5 {[%clk
0:00:17.8]} 36... f5 {[%clk 0:00:05.7]} 37. Rd7 {[%clk 0:00:14.1]} 37... Rc3
{[%clk 0:00:04.3]} 38. Bf4 {[%clk 0:00:13.5]} 38... Rc4 {[%clk 0:00:03.9]} 39.
Kg3 {[%clk 0:00:10.1]} 39... Rc3+ {[%clk 0:00:03.1]} 40. Kh2 {[%clk 0:00:09.8]}
40... Rc2 {[%clk 0:00:03.4]} 41. Bg3 {[%clk 0:00:06.7]} 41... Rc4 {[%clk
0:00:03]} 42. Rd8+ {[%clk 0:00:02.2]} 42... Kf7 {[%clk 0:00:02.3]} 43. Bd6
{[%clk 0:00:03.1]} 43... Rd4 {[%clk 0:00:01.7]} 44. Rd7+ {[%clk 0:00:03.3]}
44... Kg8 {[%clk 0:00:02]} 45. Bc5 {[%clk 0:00:03.2]} 45... Rd3 {[%clk
0:00:01.8]} 46. d6 {[%clk 0:00:02.8]} 46... f4 {[%clk 0:00:02.1]} 47. f3 {[%clk
0:00:01.8]} 1-0

[Event "*** Titled Tuesday Blitz"]
[Site "Chess.com"]
[Date "2020.03.03"]
[Round "8"]
[White "Alexander_Zubov"]
[Black "MarcoRiehle"]
[Result "1-0"]
[WhiteElo "2910"]
[BlackElo "2744"]
[TimeControl "180+1"]
[EndTime "10:29:52 PST"]
[Termination "Alexander_Zubov won by resignation"]

1. d4 {[%clk 0:03:00.9]} 1... d5 {[%clk 0:02:59.7]} 2. c4 {[%clk 0:03:00.4]}
2... e6 {[%clk 0:02:59.5]} 3. Nf3 {[%clk 0:02:58.9]} 3... Nf6 {[%clk 0:02:58.7]}
4. Nc3 {[%clk 0:02:58.9]} 4... dxc4 {[%clk 0:02:58.3]} 5. e4 {[%clk 0:02:58.4]}
5... Bb4 {[%clk 0:02:52.4]} 6. Bxc4 {[%clk 0:02:54.9]} 6... Nxe4 {[%clk
0:02:51.7]} 7. O-O {[%clk 0:02:54.2]} 7... Nxc3 {[%clk 0:02:50.7]} 8. bxc3
{[%clk 0:02:54.1]} 8... Be7 {[%clk 0:02:51.2]} 9. Ne5 {[%clk 0:02:52.6]} 9...
Nc6 {[%clk 0:02:49.3]} 10. Qg4 {[%clk 0:02:51.6]} 10... Bf6 {[%clk 0:02:41.8]}
11. Bf4 {[%clk 0:02:50]} 11... O-O {[%clk 0:02:34.4]} 12. Rad1 {[%clk
0:02:45.2]} 12... Qe7 {[%clk 0:02:33.4]} 13. Rd3 {[%clk 0:02:26.1]} 13... g6
{[%clk 0:02:30.7]} 14. Re1 {[%clk 0:02:08.8]} 14... Nxe5 {[%clk 0:02:19.9]} 15.
dxe5 {[%clk 0:02:07.9]} 15... Bg7 {[%clk 0:02:19.7]} 16. h4 {[%clk 0:02:04.7]}
16... Qc5 {[%clk 0:02:05.6]} 17. Bb3 {[%clk 0:02:02.3]} 17... b6 {[%clk
0:02:03.1]} 18. h5 {[%clk 0:01:51.6]} 18... Bb7 {[%clk 0:01:58]} 19. Rh3 {[%clk
0:01:47.4]} 19... Rfd8 {[%clk 0:01:47.5]} 20. hxg6 {[%clk 0:01:24.4]} 20... hxg6
{[%clk 0:01:48.4]} 21. Qh4 {[%clk 0:01:22.8]} 21... Qc6 {[%clk 0:01:44.5]} 22.
f3 {[%clk 0:00:48.5]} 22... Qxc3 {[%clk 0:01:36.1]} 23. Kh1 {[%clk 0:00:37.5]}
23... Rd4 {[%clk 0:01:27.9]} 24. Rg1 {[%clk 0:00:21.8]} 24... Kf8 {[%clk
0:01:13.5]} 25. Qg5 {[%clk 0:00:18.8]} 25... Rad8 {[%clk 0:01:01.2]} 26. Rc1
{[%clk 0:00:16.8]} 26... Qb4 {[%clk 0:00:55.4]} 27. Rxc7 {[%clk 0:00:15.7]}
27... R4d7 {[%clk 0:00:37.4]} 28. Rxb7 {[%clk 0:00:11.7]} 28... Qe1+ {[%clk
0:00:26.3]} 29. Kh2 {[%clk 0:00:11.2]} 29... a5 {[%clk 0:00:27.2]} 30. Rxd7
{[%clk 0:00:06.3]} 30... Rxd7 {[%clk 0:00:28.1]} 31. Rh7 {[%clk 0:00:04.5]}
31... Kg8 {[%clk 0:00:24.7]} 32. Rxg7+ {[%clk 0:00:03.6]} 32... Kxg7 {[%clk
0:00:25.6]} 33. Qf6+ {[%clk 0:00:03.3]} 33... Kg8 {[%clk 0:00:24.3]} 34. Bg5
{[%clk 0:00:01.8]} 34... Qc3 {[%clk 0:00:12.5]} 35. Bxe6 {[%clk 0:00:01.7]}
35... fxe6 {[%clk 0:00:12.5]} 36. Qxg6+ {[%clk 0:00:02.1]} 36... Rg7 {[%clk
0:00:11.6]} 37. Qxe6+ {[%clk 0:00:02.6]} 37... Kh7 {[%clk 0:00:11.6]} 38. Bf6
{[%clk 0:00:02.9]} 38... Rg6 {[%clk 0:00:07.8]} 39. Qf7+ {[%clk 0:00:02.3]}
39... Kh6 {[%clk 0:00:07.8]} 40. Qf8+ {[%clk 0:00:02.9]} 40... Kh5 {[%clk
0:00:07.1]} 41. Qh8+ {[%clk 0:00:03.3]} 41... Rh6 {[%clk 0:00:07.2]} 42. Qg7
{[%clk 0:00:03.7]} 42... Qxe5+ {[%clk 0:00:01.9]} 43. Bxe5 {[%clk 0:00:03.3]}
43... Rg6 {[%clk 0:00:02.8]} 44. Qh7+ {[%clk 0:00:03.7]} 44... Kg5 {[%clk
0:00:02.7]} 45. f4+ {[%clk 0:00:03]} 45... Kf5 {[%clk 0:00:03.6]} 46. Qh5+
{[%clk 0:00:03.1]} 46... Ke4 {[%clk 0:00:04.5]} 47. Qxg6+ {[%clk 0:00:03.4]} 1-0

[Event "*** Titled Tuesday Blitz"]
[Site "Chess.com"]
[Date "2020.03.03"]
[Round "8"]
[White "tbalabayev"]
[Black "norwaytoadog"]
[Result "0-1"]
[WhiteElo "2436"]
[BlackElo "2269"]
[TimeControl "180+1"]
[EndTime "10:29:52 PST"]
[Termination "norwaytoadog won on time"]

1. Nf3 {[%clk 0:03:00.9]} 1... Nf6 {[%clk 0:02:59.5]} 2. g3 {[%clk 0:03:00.6]}
2... e6 {[%clk 0:02:59.8]} 3. Bg2 {[%clk 0:03:01.1]} 3... d5 {[%clk 0:02:54.3]}
4. O-O {[%clk 0:03:02]} 4... b5 {[%clk 0:02:54.1]} 5. d3 {[%clk 0:03:02.6]} 5...
Be7 {[%clk 0:02:53.4]} 6. Nbd2 {[%clk 0:03:02.8]} 6... O-O {[%clk 0:02:52.9]} 7.
e4 {[%clk 0:03:02.5]} 7... Bb7 {[%clk 0:02:51.7]} 8. e5 {[%clk 0:03:02]} 8...
Nfd7 {[%clk 0:02:51.9]} 9. Re1 {[%clk 0:03:02.5]} 9... c5 {[%clk 0:02:51.5]} 10.
Nf1 {[%clk 0:02:59.1]} 10... Nc6 {[%clk 0:02:51.6]} 11. h4 {[%clk 0:02:58.1]}
11... b4 {[%clk 0:02:47.9]} 12. N1h2 {[%clk 0:02:54.4]} 12... a5 {[%clk
0:02:46.6]} 13. h5 {[%clk 0:02:53.5]} 13... h6 {[%clk 0:02:43.7]} 14. Ng4 {[%clk
0:02:51.6]} 14... Re8 {[%clk 0:02:35.5]} 15. Bf4 {[%clk 0:02:38.1]} 15... Kh7
{[%clk 0:02:31]} 16. Qd2 {[%clk 0:02:36.5]} 16... Bf8 {[%clk 0:02:30.1]} 17. c3
{[%clk 0:02:08.5]} 17... Ba6 {[%clk 0:02:18.4]} 18. Rad1 {[%clk 0:02:03.9]}
18... bxc3 {[%clk 0:02:12.6]} 19. bxc3 {[%clk 0:02:03]} 19... Rb8 {[%clk
0:02:11.4]} 20. Rb1 {[%clk 0:01:50.4]} 20... Qe7 {[%clk 0:01:59.5]} 21. Rb3
{[%clk 0:01:32.9]} 21... c4 {[%clk 0:01:53.8]} 22. Rxb8 {[%clk 0:01:18.7]} 22...
Rxb8 {[%clk 0:01:53.1]} 23. d4 {[%clk 0:01:19.1]} 23... Qa3 {[%clk 0:01:49.8]}
24. Qc2+ {[%clk 0:01:03.3]} 24... Kh8 {[%clk 0:01:49.4]} 25. Bc1 {[%clk
0:01:03.7]} 25... Qe7 {[%clk 0:01:46]} 26. Nh4 {[%clk 0:00:41.4]} 26... Nb6
{[%clk 0:01:34.1]} 27. f4 {[%clk 0:00:39.2]} 27... Bc8 {[%clk 0:01:23.6]} 28.
Rf1 {[%clk 0:00:37.5]} 28... Qe8 {[%clk 0:01:00.4]} 29. Ne3 {[%clk 0:00:31]}
29... Ne7 {[%clk 0:00:53.9]} 30. f5 {[%clk 0:00:29.1]} 30... Qa4 {[%clk
0:00:48.7]} 31. Qf2 {[%clk 0:00:26.2]} 31... exf5 {[%clk 0:00:40.1]} 32. g4
{[%clk 0:00:23.8]} 32... f4 {[%clk 0:00:34.6]} 33. Qxf4 {[%clk 0:00:22.8]} 33...
Be6 {[%clk 0:00:33.8]} 34. g5 {[%clk 0:00:21.2]} 34... Qe8 {[%clk 0:00:31.1]}
35. gxh6 {[%clk 0:00:16.8]} 35... gxh6 {[%clk 0:00:30.7]} 36. Nef5 {[%clk
0:00:14.5]} 36... Nxf5 {[%clk 0:00:25]} 37. Nxf5 {[%clk 0:00:15.4]} 37... Kh7
{[%clk 0:00:20.2]} 38. Bh3 {[%clk 0:00:09.3]} 38... Be7 {[%clk 0:00:17]} 39. Kh2
{[%clk 0:00:07]} 39... Bg5 {[%clk 0:00:15.3]} 40. Qg4 {[%clk 0:00:07.1]} 40...
Qd8 {[%clk 0:00:13.2]} 41. Bxg5 {[%clk 0:00:05.2]} 41... Qxg5 {[%clk 0:00:12.7]}
42. Qxg5 {[%clk 0:00:05.3]} 42... hxg5 {[%clk 0:00:13]} 43. Rb1 {[%clk
0:00:05.5]} 43... Nd7 {[%clk 0:00:12.5]} 44. Rxb8 {[%clk 0:00:04.3]} 44... Nxb8
{[%clk 0:00:12.8]} 45. Ne3 {[%clk 0:00:05.2]} 45... Nc6 {[%clk 0:00:11.2]} 46.
Kg3 {[%clk 0:00:01.6]} 46... Kh6 {[%clk 0:00:11.3]} 47. Bg4 {[%clk 0:00:01.8]}
47... Kg7 {[%clk 0:00:10.6]} 48. Bf3 {[%clk 0:00:01.5]} 48... Ne7 {[%clk
0:00:09.9]} 0-1